fUSD/lending_fUSD_20241003
["ID","MTS","AMOUNT","RATE_DAILY","PERIOD"]
[339778082,1727982652972,-24616.64051633,0.00033,2]
[339778083,1727982652982,-779.10568893,0.00033,120]
[339778084,1727982652991,-150.0,0.00033,4]
[339778085,1727982653001,-151.0,0.00033,7]
[339778086,1727982653012,-151.0,0.00033,7]
[339778087,1727982653022,-350.87824,0.00033,14]
[339778088,1727982653114,-208.0,0.00033,2]
[339778089,1727982653123,-378.50689737,0.0003302,15]
[339778090,1727982653133,-168.8,0.00033043,120]
[339778091,1727982653142,-500.0,0.00033149,120]
[339778092,1727982653152,-500.0,0.00033149,120]
[339778093,1727982653161,-500.0,0.00033149,120]
[339778094,1727982653177,-518.64137825,0.00033149,120]
[339778095,1727982653186,-639.38,0.00033149,120]
[339778096,1727982653196,-639.38,0.00033149,120]
[339778097,1727982653206,-639.38,0.00033149,120]
[339778098,1727982653217,-639.38,0.00033149,120]
[339778099,1727982653227,-639.38,0.00033149,120]
[339778100,1727982653236,-639.38,0.00033149,120]
[339778101,1727982653245,-639.38,0.00033149,120]
[339778102,1727982653254,-639.53585297,0.00033149,120]
[339778103,1727982653263,-500.0,0.00033149,120]
[339778104,1727982653273,-500.0,0.00033149,120]
[339778105,1727982653282,-161.64623416,0.00033149,120]
[339778106,1727982653292,-500.0,0.0003315,120]
[339778107,1727982653301,-151.0,0.0003315,7]
[339778108,1727982653310,-279.130179,0.0003315,7]
[339778109,1727982653320,-154.050052,0.0003315,7]
[339778110,1727982653329,-151.0,0.0003315,7]
[339778111,1727982653338,-151.0,0.0003315,7]
[339778112,1727982653348,-151.0,0.0003315,7]
[339778113,1727982653361,-151.0,0.0003315,7]
[339778114,1727982653370,-151.0,0.0003315,7]
[339778115,1727982653380,-151.0,0.0003315,7]
[339778116,1727982653389,-370.388659,0.0003315,7]
[339778117,1727982653398,-370.388659,0.0003315,7]
[339778118,1727982653408,-370.388659,0.0003315,7]
[339778119,1727982653419,-370.388659,0.0003315,7]
[339778120,1727982653429,-151.0,0.0003315,7]
[339778121,1727982653438,-151.0,0.0003315,7]
[339778122,1727982653447,-151.0,0.0003315,7]
[339778123,1727982653456,-151.0,0.0003315,7]
[339778124,1727982653465,-151.0,0.0003315,7]
[339778125,1727982653475,-151.0,0.0003315,7]
[339778126,1727982653484,-151.0,0.0003315,7]
[339778127,1727982653493,-151.0,0.0003315,7]
[339778128,1727982653503,-151.0,0.0003315,7]
[339778129,1727982653512,-151.0,0.0003315,7]
[339778130,1727982653521,-763.881461,0.0003315,7]
[339778131,1727982653530,-763.881461,0.0003315,7]
[339778132,1727982653540,-763.881461,0.0003315,7]
[339778133,1727982653549,-763.881461,0.0003315,7]
[339778134,1727982653559,-151.0,0.0003315,7]
[339778135,1727982653569,-151.0,0.0003315,7]
[339778136,1727982653577,-186.668776,0.0003315,7]
[339778137,1727982653587,-151.0,0.0003315,7]
[339778138,1727982653595,-151.0,0.0003315,7]
[339778139,1727982653605,-166.667398,0.0003315,7]
[339778140,1727982653614,-166.667398,0.0003315,7]
[339778141,1727982653623,-166.667398,0.0003315,7]
[339778142,1727982653633,-166.667398,0.0003315,7]
[339778143,1727982653643,-400.0,0.0003315,7]
[339778144,1727982653652,-400.0,0.0003315,7]
[339778145,1727982653662,-400.0,0.0003315,7]
[339778146,1727982653674,-400.0,0.0003315,7]
[339778147,1727982653683,-151.0,0.0003315,7]
[339778148,1727982653692,-151.0,0.0003315,7]
[339778149,1727982653701,-151.0,0.0003315,7]
[339778150,1727982653710,-151.0,0.0003315,7]
[339778151,1727982653720,-306.869391,0.0003315,7]
[339778152,1727982653730,-306.869391,0.0003315,7]
[339778153,1727982653739,-306.869391,0.0003315,7]
[339778154,1727982653749,-306.869391,0.0003315,7]
[339778155,1727982653758,-151.0,0.0003315,7]
[339778156,1727982653767,-151.0,0.0003315,7]
[339778157,1727982653776,-500.0,0.0003315,120]
[339778158,1727982653785,-262.630309,0.0003315,7]
[339778159,1727982653794,-262.630309,0.0003315,7]
[339778160,1727982653803,-262.630309,0.0003315,7]
[339778161,1727982653813,-500.0,0.0003315,120]
[339778162,1727982653822,-262.630309,0.0003315,7]
[339778163,1727982653831,-942.367768,0.0003315,7]
[339778164,1727982653841,-500.0,0.0003315,120]
[339778165,1727982653849,-476.51952658,0.0003315,120]
[339778166,1727982653858,-500.0,0.0003315,120]
[339778167,1727982653868,-171.492856,0.0003315,7]
[339778168,1727982653877,-171.492856,0.0003315,7]
[339778169,1727982653887,-171.492856,0.0003315,7]
[339778170,1727982653896,-171.492856,0.0003315,7]
[339778171,1727982653905,-500.0,0.0003315,120]
[339778172,1727982653915,-500.0,0.0003315,120]
[339778173,1727982653925,-2211.99,0.0003315,120]
[339778174,1727982653934,-500.0,0.0003315,120]
[339778175,1727982653943,-971.96,0.0003315,120]
[339778176,1727982653953,-500.0,0.0003315,120]
[339778177,1727982653962,-563.8,0.0003315,120]
[339778178,1727982653971,-570.99307587,0.0003315,120]
[339778179,1727982653981,-500.0,0.0003315,120]
[339778180,1727982653990,-500.0,0.0003315,120]
[339778181,1727982654000,-671.08,0.0003315,120]
[339778182,1727982654009,-530.88,0.0003315,120]
[339778183,1727982654019,-500.0,0.0003315,120]
[339778184,1727982654029,-500.0,0.0003315,120]
[339778185,1727982654038,-881.55,0.0003315,120]
[339778186,1727982654048,-500.0,0.0003315,120]
[339778187,1727982654057,-500.0,0.0003315,120]
[339778188,1727982654067,-500.0,0.0003315,120]
[339778189,1727982654076,-500.0,0.0003315,120]
[339778190,1727982654086,-585.9,0.0003315,120]
[339778191,1727982654095,-500.0,0.0003315,120]
[339778192,1727982654105,-632.28,0.0003315,120]
[339778193,1727982654114,-500.0,0.0003315,120]
[339778194,1727982654123,-679.37,0.0003315,120]
[339778195,1727982654132,-500.0,0.0003315,120]
[339778196,1727982654142,-500.0,0.0003315,120]
[339778197,1727982654152,-546.36,0.0003315,120]
[339778198,1727982654161,-1109.37,0.0003315,120]
[339778199,1727982654173,-500.0,0.0003315,120]
[339778200,1727982654182,-1914.28,0.0003315,120]
[339778201,1727982654192,-500.0,0.0003315,120]
[339778202,1727982654202,-723.91,0.0003315,120]
[339778203,1727982654212,-1871.74,0.0003315,120]
[339778204,1727982654221,-500.0,0.0003315,120]
[339778205,1727982654231,-500.0,0.0003315,120]
[339778206,1727982654241,-500.0,0.0003315,120]
[339778207,1727982654250,-830.77,0.0003315,120]
[339778208,1727982654260,-150.0,0.0003315,120]
[339778209,1727982654270,-536.35,0.0003315,120]
[339778210,1727982654279,-626.98,0.0003315,120]
[339778211,1727982654288,-500.0,0.0003315,120]
[339778212,1727982654298,-774.17,0.0003315,120]
[339778213,1727982654307,-688.59,0.0003315,120]
[339778214,1727982654317,-500.0,0.0003315,120]
[339778215,1727982654326,-500.0,0.0003315,120]
[339778216,1727982654335,-1145.91,0.0003315,30]
[339778217,1727982654347,-813.96,0.0003315,120]
[339778218,1727982654363,-181.76245476,0.0003315,120]
[339778219,1727982654373,-500.0,0.0003315,120]
[339778220,1727982654382,-500.0,0.0003315,120]
[339778221,1727982654393,-1044.66,0.0003315,120]
[339778222,1727982654402,-597.4991155,0.0003315,120]
[339778223,1727982654412,-500.0,0.0003315,120]
[339778224,1727982654424,-500.0,0.0003315,120]
[339778225,1727982654434,-500.0,0.0003315,120]
[339778226,1727982654443,-1070.09,0.0003315,120]
[339778227,1727982654453,-500.0,0.0003315,120]
[339778228,1727982654462,-500.0,0.0003315,120]
[339778229,1727982654471,-500.0,0.0003315,120]
[339778230,1727982654481,-843.23,0.0003315,120]
[339778231,1727982654490,-697.01,0.0003315,120]
[339778232,1727982654499,-512.66,0.0003315,120]
[339778233,1727982654510,-500.0,0.0003315,120]
[339778234,1727982654521,-1162.09,0.0003315,120]
[339778235,1727982654530,-500.0,0.0003315,120]
[339778236,1727982654539,-500.0,0.0003315,120]
[339778237,1727982654548,-695.65,0.0003315,120]
[339778238,1727982654558,-500.0,0.0003315,120]
[339778239,1727982654567,-500.0,0.0003315,120]
[339778240,1727982654576,-500.0,0.0003315,120]
[339778241,1727982654586,-500.0,0.0003315,120]
[339778242,1727982654595,-1291.62,0.0003315,120]
[339778243,1727982654604,-538.18,0.0003315,120]
[339778244,1727982654614,-647.33,0.0003315,120]
[339778245,1727982654623,-500.0,0.0003315,120]
[339778246,1727982654633,-500.0,0.0003315,120]
[339778247,1727982654642,-500.0,0.0003315,120]
[339778248,1727982654652,-500.0,0.0003315,5]
[339778249,1727982654661,-745.31,0.0003315,120]
[339778250,1727982654674,-500.0,0.0003315,120]
[339778251,1727982654683,-971.05,0.0003315,120]
[339778252,1727982654693,-500.0,0.0003315,120]
[339778253,1727982654702,-500.0,0.0003315,120]
[339778254,1727982654712,-500.0,0.0003315,120]
[339778255,1727982654721,-500.0,0.0003315,120]
[339778256,1727982654731,-500.0,0.0003315,120]
[339778257,1727982654740,-500.0,0.0003315,120]
[339778258,1727982654750,-1146.72,0.0003315,120]
[339778259,1727982654760,-500.0,0.0003315,120]
[339778260,1727982654769,-500.0,0.0003315,120]
[339778261,1727982654779,-500.0,0.0003315,120]
[339778262,1727982654788,-500.0,0.0003315,120]
[339778263,1727982654797,-500.0,0.0003315,120]
[339778264,1727982654807,-500.0,0.0003315,120]
[339778265,1727982654817,-868.99,0.0003315,120]
[339778266,1727982654826,-500.0,0.0003315,120]
[339778267,1727982654835,-500.0,0.0003315,120]
[339778268,1727982654844,-500.0,0.0003315,120]
[339778269,1727982654853,-500.0,0.0003315,120]
[339778270,1727982654863,-785.7,0.0003315,120]
[339778271,1727982654872,-500.0,0.0003315,120]
[339778272,1727982654881,-922.29,0.0003315,120]
[339778273,1727982654890,-500.0,0.0003315,120]
[339778274,1727982654900,-500.0,0.0003315,120]
[339778275,1727982654910,-500.0,0.0003315,120]
[339778276,1727982654920,-500.0,0.0003315,120]
[339778277,1727982654929,-500.0,0.0003315,120]
[339778278,1727982654938,-500.0,0.0003315,120]
[339778279,1727982654948,-1005.98,0.0003315,120]
[339778280,1727982654958,-1265.11,0.0003315,120]
[339778281,1727982654967,-500.0,0.0003315,120]
[339778282,1727982654976,-1058.62,0.0003315,120]
[339778283,1727982654985,-1000.0,0.0003315,120]
[339778284,1727982654994,-500.0,0.0003315,120]
[339778285,1727982655004,-1285.4,0.0003315,120]
[339778286,1727982655014,-500.0,0.0003315,120]
[339778287,1727982655023,-500.0,0.0003315,120]
[339778288,1727982655033,-500.0,0.0003315,120]
[339778289,1727982655043,-910.74,0.0003315,120]
[339778290,1727982655052,-500.0,0.0003315,120]
[339778291,1727982655062,-507.74098826,0.0003315,2]
[339778292,1727982655071,-500.0,0.0003315,120]
[339778293,1727982655080,-1109.6,0.0003315,120]
[339778294,1727982655090,-500.0,0.0003315,120]
[339778295,1727982655100,-500.0,0.0003315,120]
[339778296,1727982655109,-523.85,0.0003315,120]
[339778297,1727982655119,-500.0,0.0003315,120]
[339778298,1727982655129,-500.0,0.0003315,120]
[339778299,1727982655139,-2405.98,0.0003315,120]
[339778300,1727982655149,-500.0,0.0003315,120]
[339778301,1727982655158,-500.0,0.0003315,120]
[339778302,1727982655170,-532.25,0.0003315,120]
[339778303,1727982655179,-500.0,0.0003315,120]
[339778304,1727982655189,-500.0,0.0003315,120]
[339778305,1727982655199,-1257.82,0.0003315,120]
[339778306,1727982655209,-509.33,0.0003315,120]
[339778307,1727982655218,-500.0,0.0003315,120]
[339778308,1727982655228,-701.66,0.0003315,120]
[339778309,1727982655238,-500.0,0.0003315,120]
[339778310,1727982655247,-1224.27,0.0003315,120]
[339778311,1727982655256,-1189.92,0.0003315,120]
[339778312,1727982655266,-500.0,0.0003315,120]
[339778313,1727982655275,-500.0,0.0003315,120]
[339778314,1727982655284,-733.61,0.0003315,120]
[339778315,1727982655293,-500.0,0.0003315,120]
[339778316,1727982655303,-576.54,0.0003315,120]
[339778317,1727982655312,-862.23,0.0003315,120]
[339778318,1727982655321,-500.0,0.0003315,120]
[339778319,1727982655331,-721.29,0.0003315,120]
[339778320,1727982655341,-1136.04,0.0003315,120]
[339778321,1727982655354,-668.9,0.0003315,120]
[339778322,1727982655363,-500.0,0.0003315,120]
[339778323,1727982655373,-572.02,0.0003315,120]
[339778324,1727982655382,-500.0,0.0003315,120]
[339778325,1727982655392,-659.41,0.0003315,120]
[339778326,1727982655401,-740.9,0.0003315,120]
[339778327,1727982655411,-650.73,0.0003315,120]
[339778328,1727982655421,-500.0,0.0003315,120]
[339778329,1727982655432,-870.17,0.0003315,120]
[339778330,1727982655441,-500.0,0.0003315,120]
[339778331,1727982655450,-500.0,0.0003315,120]
[339778332,1727982655460,-530.24,0.0003315,120]
[339778333,1727982655470,-639.02,0.0003315,120]
[339778334,1727982655479,-500.0,0.0003315,120]
[339778335,1727982655489,-500.0,0.0003315,120]
[339778336,1727982655498,-836.27,0.0003315,120]
[339778337,1727982655508,-500.0,0.0003315,120]
[339778338,1727982655516,-500.0,0.0003315,120]
[339778339,1727982655526,-500.0,0.0003315,120]
[339778340,1727982655536,-1752.48,0.0003315,120]
[339778341,1727982655545,-1674.45,0.0003315,120]
[339778342,1727982655555,-1168.54,0.0003315,120]
[339778343,1727982655564,-500.0,0.0003315,120]
[339778344,1727982655574,-500.0,0.0003315,120]
[339778345,1727982655583,-2430.04,0.0003315,120]
[339778346,1727982655593,-20000.0,0.0003315,2]
[339778347,1727982655603,-500.0,0.0003315,120]
[339778348,1727982655613,-500.0,0.0003315,120]
[339778349,1727982655622,-500.0,0.0003315,120]
[339778350,1727982655631,-500.0,0.0003315,120]
[339778351,1727982655641,-500.0,0.0003315,90]
[339778352,1727982655650,-2235.25,0.0003315,120]
[339778353,1727982655660,-749.88,0.0003315,24]
[339778354,1727982655674,-500.0,0.0003315,120]
[339778355,1727982655683,-2252.62,0.0003315,120]
[339778356,1727982655693,-500.0,0.0003315,120]
[339778357,1727982655702,-1158.96,0.0003315,120]
[339778358,1727982655713,-500.0,0.0003315,120]
[339778359,1727982655723,-500.0,0.0003315,120]
[339778360,1727982655732,-500.0,0.0003315,120]
[339778361,1727982655742,-759.01,0.0003315,120]
[339778362,1727982655752,-504.94,0.0003315,120]
[339778363,1727982655761,-595.98670951,0.0003315,120]
[339778364,1727982655771,-500.0,0.0003315,120]
[339778365,1727982655781,-1642.55,0.0003315,120]
[339778366,1727982655791,-1126.69,0.0003315,120]
[339778367,1727982655800,-1518.09,0.0003315,120]
[339778368,1727982655810,-500.0,0.0003315,120]
[339778369,1727982655819,-213.83424422,0.0003315,120]
[339778370,1727982655829,-500.0,0.0003315,120]
[339778371,1727982655838,-500.0,0.0003315,120]
[339778372,1727982655847,-2332.95,0.0003315,120]
[339778373,1727982655856,-881.14,0.0003315,120]
[339778374,1727982655866,-463.66860075,0.0003315,120]
[339778375,1727982655875,-1062.68,0.0003315,120]
[339778376,1727982655885,-1089.61,0.0003315,120]
[339778377,1727982655894,-500.0,0.0003315,120]
[339778378,1727982655904,-500.0,0.0003315,120]
[339778379,1727982655913,-1981.95,0.0003315,120]
[339778380,1727982655926,-500.0,0.0003315,120]
[339778381,1727982655935,-500.0,0.0003315,120]
[339778382,1727982655944,-500.0,0.0003315,120]
[339778383,1727982655954,-500.0,0.0003315,120]
[339778384,1727982655964,-5241.23,0.0003315,120]
[339778385,1727982655974,-500.0,0.0003315,120]
[339778386,1727982655983,-2018.74,0.0003315,120]
[339778387,1727982655993,-500.0,0.0003315,120]
[339778388,1727982656002,-500.0,0.0003315,120]
[339778389,1727982656011,-500.0,0.0003315,120]
[339778390,1727982656021,-535.49,0.0003315,120]
[339778391,1727982656031,-522.93302303,0.0003315,120]
[339778392,1727982656040,-500.0,0.0003315,120]
[339778393,1727982656050,-500.0,0.0003315,120]
[339778394,1727982656059,-500.0,0.0003315,120]
[339778395,1727982656069,-1250.03,0.0003315,120]
[339778396,1727982656078,-2902.72,0.0003315,120]
[339778397,1727982656087,-500.0,0.0003315,120]
[339778398,1727982656096,-2587.44,0.0003315,120]
[339778399,1727982656106,-500.0,0.0003315,120]
[339778400,1727982656115,-500.0,0.0003315,120]
[339778401,1727982656125,-2510.63,0.0003315,120]
[339778402,1727982656134,-723.92,0.0003315,120]
[339778403,1727982656143,-711.37,0.0003315,120]
[339778404,1727982656152,-500.0,0.0003315,120]
[339778405,1727982656162,-1791.96,0.0003315,120]
[339778406,1727982656173,-3166.02,0.0003315,120]
[339778407,1727982656183,-1267.03,0.0003315,120]
[339778408,1727982656192,-500.0,0.0003315,120]
[339778409,1727982656202,-500.0,0.0003315,120]
[339778410,1727982656211,-619.48,0.0003315,120]
[339778411,1727982656220,-1769.87,0.0003315,120]
[339778412,1727982656230,-621.03,0.0003315,120]
[339778413,1727982656239,-559.22487465,0.0003315,120]
[339778414,1727982656248,-856.57,0.0003315,120]
[339778415,1727982656258,-500.0,0.0003315,120]
[339778416,1727982656267,-500.0,0.0003315,120]
[339778417,1727982656275,-500.0,0.0003315,120]
[339778418,1727982656285,-500.0,0.0003315,120]
[339778419,1727982656294,-3322.9,0.0003315,120]
[339778420,1727982656303,-500.0,0.0003315,120]
[339778421,1727982656312,-500.0,0.0003315,120]
[339778422,1727982656321,-972.85,0.0003315,120]
[339778423,1727982656330,-500.0,0.0003315,120]
[339778424,1727982656339,-1246.86,0.0003315,120]
[339778425,1727982656349,-500.0,0.0003315,120]
[339778426,1727982656362,-500.0,0.0003315,120]
[339778427,1727982656371,-730.31,0.0003315,120]
[339778428,1727982656380,-830.42,0.0003315,120]
[339778429,1727982656389,-500.0,0.0003315,120]
[339778430,1727982656399,-588.05,0.0003315,120]
[339778431,1727982656407,-1243.24,0.0003315,120]
[339778432,1727982656419,-500.0,0.0003315,120]
[339778433,1727982656433,-500.0,0.0003315,120]
[339778434,1727982656442,-555.63,0.0003315,120]
[339778435,1727982656451,-1230.46,0.0003315,120]
[339778436,1727982656460,-1362.61,0.0003315,120]
[339778437,1727982656469,-500.0,0.0003315,120]
[339778438,1727982656478,-1319.53,0.0003315,120]
[339778439,1727982656487,-981.99,0.0003315,120]
[339778440,1727982656496,-825.83,0.0003315,120]
[339778441,1727982656506,-500.0,0.0003315,120]
[339778442,1727982656515,-1051.47,0.0003315,120]
[339778443,1727982656524,-1494.54,0.0003315,120]
[339778444,1727982656533,-1306.0,0.0003315,120]
[339778445,1727982656543,-1031.9,0.0003315,120]
[339778446,1727982656552,-572.36,0.0003315,120]
[339778447,1727982656562,-500.0,0.0003315,120]
[339778448,1727982656571,-532.99,0.0003315,120]
[339778449,1727982656580,-1275.22,0.0003315,120]
[339778450,1727982656588,-500.0,0.0003315,120]
[339778451,1727982656597,-3179.4,0.0003315,120]
[339778452,1727982656606,-1463.89,0.0003315,120]
[339778453,1727982656615,-2471.4,0.0003315,120]
[339778454,1727982656624,-500.0,0.0003315,120]
[339778455,1727982656634,-2444.12,0.0003315,2]
[339778456,1727982656644,-1508.0,0.0003315,120]
[339778457,1727982656653,-1142.79,0.0003315,120]
[339778458,1727982656663,-641.35,0.0003315,120]
[339778459,1727982656677,-1847.83,0.0003315,120]
[339778460,1727982656687,-500.0,0.0003315,120]
[339778461,1727982656696,-500.0,0.0003315,120]
[339778462,1727982656706,-500.0,0.0003315,120]
[339778463,1727982656715,-500.0,0.0003315,120]
[339778464,1727982656724,-500.0,0.0003315,90]
[339778465,1727982656733,-3715.52,0.0003315,120]
[339778466,1727982656742,-532.65,0.0003315,120]
[339778467,1727982656751,-500.0,0.0003315,120]
[339778468,1727982656760,-597.98,0.0003315,120]
[339778469,1727982656769,-500.0,0.0003315,120]
[339778470,1727982656778,-1463.16,0.0003315,120]
[339778471,1727982656787,-842.06,0.0003315,120]
[339778472,1727982656796,-1487.59,0.0003315,120]
[339778473,1727982656805,-1269.98,0.0003315,120]
[339778474,1727982656814,-959.6,0.0003315,120]
[339778475,1727982656825,-500.0,0.0003315,120]
[339778476,1727982656834,-500.0,0.0003315,120]
[339778477,1727982656846,-689.35,0.0003315,120]
[339778478,1727982656855,-3520.64,0.0003315,120]
[339778479,1727982656866,-500.0,0.0003315,120]
[339778480,1727982656875,-742.8,0.0003315,120]
[339778481,1727982656885,-641.2,0.0003315,120]
[339778482,1727982656894,-500.0,0.0003315,120]
[339778483,1727982656904,-500.0,0.0003315,120]
[339778484,1727982656913,-974.01,0.0003315,120]
[339778485,1727982656924,-1339.77,0.0003315,120]
[339778486,1727982656933,-1537.62,0.0003315,120]
[339778487,1727982656942,-500.0,0.0003315,5]
[339778488,1727982656952,-1758.53,0.0003315,120]
[339778489,1727982656961,-500.0,0.0003315,120]
[339778490,1727982656970,-2075.75,0.0003315,120]
[339778491,1727982656979,-500.0,0.0003315,120]
[339778492,1727982656989,-3502.45,0.0003315,120]
[339778493,1727982656998,-1422.75,0.0003315,120]
[339778494,1727982657007,-500.0,0.0003315,120]
[339778495,1727982657017,-268.74740203,0.0003315,120]
[339778496,1727982657026,-500.0,0.0003315,120]
[339778497,1727982657036,-500.0,0.0003315,120]
[339778498,1727982657046,-659.84,0.0003315,120]
[339778499,1727982657055,-500.0,0.0003315,120]
[339778500,1727982657064,-502.5,0.0003315,120]
[339778501,1727982657073,-1906.97,0.0003315,120]
[339778502,1727982657083,-500.0,0.0003315,120]
[339778503,1727982657092,-500.0,0.0003315,120]
[339778504,1727982657102,-2484.29,0.0003315,120]
[339778505,1727982657111,-1273.56,0.0003315,120]
[339778506,1727982657121,-500.0,0.0003315,120]
[339778507,1727982657130,-500.0,0.0003315,120]
[339778508,1727982657139,-500.0,0.0003315,120]
[339778509,1727982657149,-2004.82,0.0003315,120]
[339778510,1727982657159,-500.0,0.0003315,120]
[339778511,1727982657168,-370.62389886,0.0003315,120]
[339778512,1727982657178,-1043.14,0.0003315,120]
[339778513,1727982657301,-500.0,0.0003315,120]
[339778514,1727982657311,-1445.97,0.0003315,120]
[339778515,1727982657321,-508.88952716,0.0003315,120]
[339778516,1727982657333,-877.0,0.0003315,120]
[339778517,1727982657342,-500.0,0.0003315,120]
[339778518,1727982657353,-184.54088117,0.0003315,120]
[339778519,1727982657364,-500.0,0.0003315,120]
[339778520,1727982657374,-500.0,0.0003315,120]
[339778521,1727982657384,-1443.35,0.0003315,120]
[339778522,1727982657394,-3476.01,0.0003315,120]
[339778523,1727982657404,-500.0,0.0003315,120]
[339778524,1727982657413,-510.51372346,0.0003315,120]
[339778525,1727982657424,-500.0,0.0003315,120]
[339778526,1727982657435,-2600.0,0.0003315,120]
[339778527,1727982657445,-562.74,0.0003315,120]
[339778528,1727982657454,-500.0,0.0003315,120]
[339778529,1727982657463,-500.0,0.0003315,120]
[339778530,1727982657473,-565.4,0.0003315,120]
[339778531,1727982657483,-500.0,0.0003315,120]
[339778532,1727982657492,-500.0,0.0003315,120]
[339778533,1727982657502,-544.59,0.0003315,120]
[339778534,1727982657511,-500.0,0.0003315,120]
[339778535,1727982657520,-500.0,0.0003315,120]
[339778536,1727982657530,-1424.66,0.0003315,120]
[339778537,1727982657540,-500.0,0.0003315,120]
[339778538,1727982657549,-500.0,0.0003315,120]
[339778539,1727982657559,-597.33,0.0003315,120]
[339778540,1727982657568,-722.36,0.0003315,120]
[339778541,1727982657578,-1350.58,0.0003315,120]
[339778542,1727982657588,-1000.0,0.0003315,120]
[339778543,1727982657598,-1038.81,0.0003315,120]
[339778544,1727982657607,-612.91,0.0003315,120]
[339778545,1727982657616,-670.75,0.0003315,120]
[339778546,1727982657626,-500.0,0.0003315,120]
[339778547,1727982657636,-500.0,0.0003315,120]
[339778548,1727982657645,-500.0,0.0003315,120]
[339778549,1727982657656,-500.0,0.0003315,120]
[339778550,1727982657666,-500.0,0.0003315,120]
[339778551,1727982657678,-223.91093261,0.0003315,120]
[339778552,1727982657688,-1301.07,0.0003315,120]
[339778553,1727982657698,-500.0,0.0003315,120]
[339778554,1727982657708,-2082.62,0.0003315,120]
[339778555,1727982657717,-500.0,0.0003315,120]
[339778556,1727982657727,-921.68,0.0003315,120]
[339778557,1727982657736,-1754.76,0.0003315,120]
[339778558,1727982657745,-500.0,0.0003315,120]
[339778559,1727982657755,-500.0,0.0003315,120]
[339778560,1727982657765,-500.0,0.0003315,120]
[339778561,1727982657775,-500.0,0.0003315,120]
[339778562,1727982657785,-500.0,0.0003315,120]
[339778563,1727982657794,-500.0,0.0003315,120]
[339778564,1727982657804,-581.43,0.0003315,120]
[339778565,1727982657814,-500.0,0.0003315,120]
[339778566,1727982657823,-809.83,0.0003315,120]
[339778567,1727982657833,-500.0,0.0003315,120]
[339778568,1727982657843,-1168.66,0.0003315,120]
[339778569,1727982657854,-500.0,0.0003315,120]
[339778570,1727982657863,-500.0,0.0003315,120]
[339778571,1727982657872,-500.0,0.0003315,120]
[339778572,1727982657882,-500.0,0.0003315,120]
[339778573,1727982657892,-1511.4,0.0003315,120]
[339778574,1727982657902,-590.69,0.0003315,120]
[339778575,1727982657912,-2449.82,0.0003315,120]
[339778576,1727982657924,-947.41,0.0003315,120]
[339778577,1727982657933,-500.0,0.0003315,120]
[339778578,1727982657943,-500.0,0.0003315,120]
[339778579,1727982657953,-500.0,0.0003315,120]
[339778580,1727982657963,-2091.47,0.0003315,120]
[339778581,1727982657973,-1803.74,0.0003315,120]